bitfinex/quotes_BTCUSD_20240629
["timestamp","ask_amount","ask_price","bid_price","bid_amount"]
[1719672851910,1.505267,61105.0,61104.0,0.1183]
[1719672855064,1.175484,61105.0,61104.0,0.0983]
[1719672855329,1.175484,61105.0,61104.0,0.01796]
[1719672855460,1.175484,61105.0,61104.0,0.1969]
[1719672855461,0.980326,61105.0,61104.0,0.1969]
[1719672855666,1.122644,61105.0,61104.0,0.1969]
[1719672856295,1.122644,61105.0,61104.0,0.35923898]
[1719672856569,1.122644,61105.0,61104.0,0.36832426]
[1719672856678,1.048135,61105.0,61104.0,0.36832426]
[1719672857715,1.048135,61105.0,61104.0,0.36612426]
[1719672858324,0.880326,61105.0,61104.0,0.36612426]
[1719672858869,0.0788,61105.0,61104.0,0.36612426]
[1719672859811,0.0788,61105.0,61104.0,0.39614228]
[1719672859812,0.002,61105.0,61104.0,0.39614228]
[1719672860011,0.0788,61105.0,61104.0,0.40614228]
[1719672860284,0.0788,61105.0,61104.0,0.37614228]
[1719672860396,0.0788,61105.0,61104.0,0.52914228]
[1719672861439,0.0778,61105.0,61104.0,0.52914228]
[1719672861836,0.0768,61105.0,61104.0,0.53114228]
[1719672862072,0.0768,61105.0,61104.0,0.52914228]
[1719672862239,0.0768,61105.0,61104.0,0.53314228]
[1719672862585,0.0778,61105.0,61104.0,0.53114228]
[1719672862816,0.0768,61105.0,61104.0,0.52914228]
[1719672863024,0.0788,61105.0,61104.0,0.54314228]
[1719672863231,0.0788,61105.0,61104.0,0.54114228]
[1719672863550,0.0778,61105.0,61104.0,0.52914228]
[1719672863745,0.0788,61105.0,61104.0,0.54214228]
[1719672865654,0.07812092,61105.0,61104.0,0.54414228]
[1719672866216,0.07812092,61105.0,61104.0,0.53414228]
[1719672868090,0.11442673,61138.0,61120.0,0.09396327]
[1719672868300,0.56491044,61121.0,61120.0,0.09396327]
[1719672868524,0.0768,61121.0,61120.0,0.09396327]
[1719672868720,0.0768,61121.0,61120.0,0.11396327]
[1719672868926,2.035818,61121.0,61120.0,0.12298932]
[1719672869126,1.972779,61121.0,61120.0,0.11396327]
[1719672869349,1.972779,61121.0,61120.0,0.11496327]
[1719672869956,1.972779,61121.0,61120.0,0.11396327]
[1719672870195,1.980779,61121.0,61120.0,0.02]
[1719672870393,1.980779,61121.0,61120.0,0.11396327]
[1719672870599,1.918492,61121.0,61120.0,0.11396327]
[1719672871313,1.841692,61121.0,61120.0,0.11396327]
[1719672871523,1.746029,61121.0,61120.0,0.11396327]
[1719672871936,1.746029,61121.0,61120.0,0.11496327]
[1719672872161,1.753029,61121.0,61120.0,0.11496327]
[1719672872365,1.754229,61121.0,61120.0,0.11496327]
[1719672872793,1.747229,61121.0,61120.0,0.11396327]
[1719672872997,1.739229,61121.0,61120.0,0.11496327]
[1719672873275,1.749229,61121.0,61120.0,0.11496327]
[1719672873488,1.759229,61121.0,61120.0,0.11496327]
[1719672874244,0.098,61121.0,61120.0,0.11496327]
[1719672876412,0.09884,61121.0,61120.0,0.11496327]
[1719672876817,2.050398,61121.0,61120.0,0.11496327]
[1719672877037,1.961104,61121.0,61120.0,0.11496327]
[1719672879503,1.961104,61121.0,61120.0,0.11516327]
[1719672880894,1.961104,61121.0,61120.0,0.11526327]
[1719672881160,1.99068275,61121.0,61120.0,0.11526327]
[1719672881757,1.99809315,61121.0,61120.0,0.11526327]
[1719672882135,1.98809315,61121.0,61120.0,0.11526327]
[1719672882313,1.97809315,61121.0,61120.0,0.11426327]
[1719672882512,1.98709315,61121.0,61120.0,0.11419366]
[1719672882744,1.99289315,61121.0,61120.0,0.11419366]
[1719672888868,1.91815915,61121.0,61120.0,0.11419366]
[1719672889476,1.88534115,61121.0,61120.0,0.11419366]
[1719672891641,0.17160115,61121.0,61120.0,0.30209366]
[1719672891860,0.1420224,61121.0,61120.0,0.30209366]
[1719672892156,0.1420224,61121.0,61120.0,0.31342121]
[1719672892572,0.1350224,61121.0,61120.0,0.31342121]
[1719672892790,0.1350224,61121.0,61120.0,0.34450073]
[1719672892992,0.1400224,61121.0,61120.0,0.34450073]
[1719672893394,0.1260224,61121.0,61120.0,0.31342121]
[1719672893703,0.1310224,61121.0,61120.0,0.31342121]
[1719672893914,0.1350224,61121.0,61120.0,0.31342121]
[1719672894124,0.08664,61121.0,61120.0,0.31342121]
[1719672894321,0.08164,61121.0,61120.0,0.31342121]
[1719672894783,0.08564,61121.0,61120.0,0.31342121]
[1719672895553,0.08164,61121.0,61120.0,0.31342121]
[1719672895722,0.08130346,61143.0,61126.0,0.01993039]
[1719672895948,0.0768,61127.0,61126.0,0.01993039]
[1719672896081,1.353322,61127.0,61126.0,0.01993039]
[1719672897094,1.322026,61127.0,61126.0,0.01993039]
[1719672898126,1.112146,61127.0,61126.0,0.20783039]
[1719672898332,1.188946,61127.0,61126.0,0.20783039]
[1719672899554,1.198946,61127.0,61126.0,0.1879]
[1719672901224,1.198946,61127.0,61126.0,0.20783039]
[1719672902170,1.198946,61127.0,61126.0,0.1879]
[1719672902599,1.198946,61127.0,61126.0,0.20783039]
[1719672903073,1.198946,61127.0,61126.0,0.21912833]
[1719672904846,1.198946,61127.0,61126.0,0.01129794]
[1719672905280,1.198946,61127.0,61125.0,0.2]
[1719672905516,2.321309,61126.0,61125.0,0.2]
[1719672905839,2.321309,61126.0,61104.0,0.35394202]
[1719672905840,2.321309,61126.0,61115.0,0.01993039]
[1719672906045,0.0768,61116.0,61104.0,0.15087241]
[1719672906251,0.0768,61105.0,61104.0,0.02085439]
[1719672906464,0.0768,61105.0,61104.0,0.000924]
[1719672906465,0.0766,61105.0,61104.0,0.000924]
[1719672906676,0.0768,61105.0,61104.0,0.083724]
[1719672907085,0.0767,61105.0,61104.0,0.083724]
[1719672907725,0.0767,61105.0,61104.0,0.086724]
[1719672907912,0.0767,61105.0,61104.0,0.089724]
[1719672909953,0.0767,61105.0,61104.0,0.089824]
[1719672910182,0.0767,61105.0,61104.0,0.17112746]
[1719672910854,0.0767,61105.0,61104.0,0.17122746]
[1719672911189,0.0767,61105.0,61104.0,0.19115785]
[1719672911408,0.0767,61105.0,61104.0,0.19125785]
[1719672911777,0.07754,61105.0,61104.0,0.19125785]
[1719672912195,0.07754,61105.0,61104.0,0.090024]
[1719672912498,0.07754,61105.0,61104.0,0.02715439]
[1719672912904,0.07754,61105.0,61104.0,0.007224]
[1719672914542,0.07754,61105.0,61104.0,0.02715439]
[1719672915327,0.07754,61105.0,61104.0,0.007224]
[1719672915657,0.07754,61105.0,61104.0,0.02715439]
[1719672917366,0.07754,61105.0,61104.0,0.007224]
[1719672918877,2.099249,61105.0,61104.0,0.007224]
[1719672919099,1.93538123,61105.0,61104.0,0.007224]
[1719672920002,1.80342023,61105.0,61104.0,0.007224]
[1719672920254,1.16724323,61105.0,61104.0,0.007224]
[1719672920468,1.12626123,61105.0,61104.0,0.007224]
[1719672920740,1.12626123,61105.0,61104.0,0.01863052]
[1719672920904,1.12626123,61105.0,61104.0,0.007224]
[1719672921105,1.12626123,61105.0,61104.0,0.01863052]
[1719672921278,1.12626123,61105.0,61104.0,0.007224]
[1719672921478,1.12626123,61105.0,61104.0,0.01863052]
[1719672926114,1.12626123,61105.0,61104.0,0.03856091]
[1719672926927,1.12626123,61105.0,61104.0,0.01863052]
[1719672933547,1.12626123,61105.0,61104.0,0.03856091]
[1719672933663,1.12626123,61105.0,61104.0,0.01863052]
[1719672935527,1.12626123,61105.0,61104.0,0.03856091]
[1719672935871,1.12626123,61105.0,61104.0,0.01863052]
[1719672936425,1.90923123,61105.0,61104.0,0.01863052]
[1719672936850,1.80923123,61105.0,61104.0,0.007224]
[1719672937029,1.09635823,61105.0,61104.0,0.007224]
[1719672937233,1.09635823,61105.0,61104.0,0.02715439]
[1719672937442,1.09635823,61105.0,61104.0,0.007224]
[1719672937648,1.09635823,61105.0,61104.0,0.01863052]
[1719672938000,1.09635823,61105.0,61104.0,0.007224]
[1719672938193,1.09635823,61105.0,61104.0,0.01863052]
[1719672938361,1.09635823,61105.0,61104.0,0.02715439]
[1719672938579,1.09635823,61105.0,61104.0,0.03856091]
[1719672938780,1.09616126,61105.0,61104.0,0.14346091]
[1719672942759,1.09616126,61105.0,61100.0,0.15198689]
[1719672942760,0.801948,61101.0,61100.0,0.15198689]
[1719672943003,1.233936,61101.0,61100.0,0.08651089]
[1719672943278,0.80199,61098.0,61097.0,0.068186]
[1719672943503,1.56621,61098.0,61097.0,0.16233898]
[1719672943991,1.56621,61098.0,61097.0,0.12960098]
[1719672944222,1.374948,61093.0,61092.0,0.13415546]
[1719672944502,1.374948,61093.0,61092.0,0.25092898]
[1719672944503,1.566327,61093.0,61092.0,0.25092898]
[1719672944993,1.566327,61093.0,61092.0,0.18545298]
[1719672945231,1.566227,61093.0,61092.0,0.18723898]
[1719672945472,1.566127,61093.0,61092.0,0.18723898]
[1719672945797,1.567127,61093.0,61092.0,0.29613898]
[1719672946034,1.567127,61093.0,61092.0,0.34400098]
[1719672946464,1.567027,61093.0,61092.0,0.34400098]
[1719672946875,1.568027,61093.0,61092.0,0.34400098]
[1719672947297,1.567827,61093.0,61092.0,0.34400098]
[1719672950426,1.491027,61093.0,61092.0,0.35356567]
[1719672950579,1.567727,61093.0,61092.0,0.35356567]
[1719672950828,1.567627,61093.0,61092.0,0.35356567]
[1719672951587,1.567527,61093.0,61092.0,0.35356567]
[1719672951736,1.567427,61093.0,61092.0,0.35356567]
[1719672952822,1.567327,61093.0,61092.0,0.35356567]
[1719672953017,1.567227,61093.0,61092.0,0.35356567]
[1719672954044,1.567227,61093.0,61092.0,0.55356567]
[1719672954617,1.567227,61093.0,61092.0,0.55366567]
[1719672955173,1.567227,61093.0,61092.0,0.55376567]
[1719672957273,1.567227,61093.0,61092.0,0.55386567]
[1719672960109,1.567227,61093.0,61092.0,0.35386567]
[1719672966040,1.567227,61093.0,61092.0,0.81581124]
[1719672966252,1.567227,61093.0,61092.0,0.75386567]
[1719672967210,1.339169,61093.0,61092.0,0.75386567]
[1719672968018,1.568327,61093.0,61092.0,0.55386567]
[1719672969137,1.568327,61093.0,61092.0,0.75386567]
[1719672969340,1.568327,61093.0,61092.0,0.63581124]
[1719672969561,1.568327,61093.0,61092.0,0.83581124]
[1719672970390,1.568327,61093.0,61092.0,0.63581124]
[1719672970591,1.568327,61093.0,61092.0,0.83581124]
[1719672970948,1.568327,61093.0,61092.0,0.63581124]
[1719672973107,1.568327,61093.0,61092.0,0.64397124]
[1719672976033,1.568327,61093.0,61092.0,0.44397124]
[1719672977551,1.568327,61093.0,61092.0,0.84397124]
[1719672977749,1.568327,61093.0,61092.0,0.44397124]
[1719672977948,1.568327,61093.0,61092.0,0.64397124]
[1719672978151,1.568327,61093.0,61092.0,0.44397124]
[1719672978337,1.568327,61093.0,61092.0,0.64489524]
[1719672978541,1.568327,61093.0,61092.0,0.44489524]
[1719672978968,1.569167,61093.0,61092.0,0.44489524]
[1719672979568,1.569167,61093.0,61092.0,0.30884199]
[1719672979792,1.569167,61093.0,61092.0,0.30610086]
[1719672979996,1.569167,61093.0,61092.0,0.21189605]
[1719672980333,1.569167,61093.0,61092.0,0.17915805]
[1719672980830,1.569167,61093.0,61092.0,0.14651905]
[1719672981063,1.569167,61093.0,61092.0,0.01556305]
[1719672981258,1.569167,61093.0,61092.0,0.00964445]
[1719672981432,1.569167,61093.0,61092.0,5e-08]
[1719672982040,1.489579,61091.0,61090.0,0.04657755]
[1719672982201,0.114585,61090.0,61089.0,0.2]
[1719672982425,0.649725,61090.0,61089.0,0.26768935]
[1719672982632,1.337235,61090.0,61089.0,0.26768935]
[1719672982835,1.566405,61090.0,61089.0,0.26768935]
[1719672983491,1.568305,61090.0,61089.0,0.26768935]
[1719672984090,1.568305,61090.0,61089.0,0.37978935]
[1719672984265,1.568305,61090.0,61089.0,0.57308935]
[1719672984471,1.568205,61090.0,61089.0,0.57308935]
[1719672985599,1.568105,61090.0,61089.0,0.57308935]
[1719672985796,1.568005,61090.0,61089.0,0.57308935]
[1719672987790,1.567805,61090.0,61089.0,0.57308935]
[1719672988708,1.567805,61090.0,61089.0,0.77308935]
[1719672989030,1.567605,61090.0,61089.0,0.77308935]
[1719672989223,1.567505,61090.0,61089.0,0.77308935]
[1719672989430,1.567505,61090.0,61089.0,0.7284]
[1719672989705,1.490705,61090.0,61089.0,0.7284]
[1719672989923,1.567405,61090.0,61089.0,0.5284]
[1719672990130,1.567305,61090.0,61089.0,0.5284]
[1719672990689,1.567305,61090.0,61089.0,0.7284]
[1719672991514,1.490505,61090.0,61089.0,0.77826833]
[1719672991716,1.567305,61090.0,61089.0,0.97826833]
[1719672992306,1.567205,61090.0,61089.0,0.97826833]
[1719672993385,1.567105,61090.0,61089.0,0.97826833]
[1719672994247,1.567005,61090.0,61089.0,0.97826833]
[1719672994584,1.566905,61090.0,61089.0,0.97826833]
[1719672995465,1.566805,61090.0,61089.0,0.97826833]
[1719672995751,1.566705,61090.0,61089.0,0.97826833]
[1719672995926,1.566605,61090.0,61089.0,0.97826833]
[1719672996548,1.566505,61090.0,61089.0,0.97826833]
[1719672996914,1.566405,61090.0,61089.0,0.97826833]
[1719672997751,1.566305,61090.0,61089.0,0.97826833]
[1719672999003,1.566205,61090.0,61089.0,0.97826833]
[1719673000095,1.566205,61090.0,61089.0,0.97846833]
[1719673003281,1.566205,61090.0,61089.0,0.97856833]
[1719673004843,1.566205,61090.0,61089.0,0.77856833]
[1719673005102,1.566205,61090.0,61089.0,0.97856833]
[1719673005345,1.337035,61090.0,61089.0,0.97856833]
[1719673009400,1.337035,61090.0,61089.0,1.17856833]
[1719673009401,1.031065,61090.0,61089.0,1.17856833]
[1719673012352,1.031065,61090.0,61089.0,1.18450153]
[1719673013208,1.031065,61090.0,61089.0,0.98450153]
[1719673013380,1.031065,61090.0,61089.0,1.18450153]
[1719673013563,1.031065,61090.0,61089.0,0.98450153]
[1719673013772,1.031065,61090.0,61089.0,1.18450153]
[1719673014182,1.031065,61090.0,61089.0,0.98450153]
[1719673014374,1.03019615,61090.0,61089.0,0.98450153]
[1719673016604,1.03019615,61090.0,61089.0,1.18450153]
[1719673017048,0.80102615,61090.0,61089.0,1.15730153]
[1719673017229,0.80102615,61090.0,61089.0,1.35730153]
[1719673017438,0.80102615,61090.0,61089.0,1.15730153]
[1719673017573,0.80102615,61090.0,61089.0,1.35730153]
[1719673018756,0.80002615,61090.0,61089.0,1.35730153]
[1719673018940,0.80102615,61090.0,61089.0,1.36830153]
[1719673019121,1.02919615,61090.0,61089.0,1.36830153]
[1719673019499,1.02919615,61090.0,61089.0,1.36730153]
[1719673019935,1.03019615,61090.0,61089.0,1.37830153]
[1719673020159,1.03019615,61090.0,61089.0,1.20550153]
[1719673020363,1.02819615,61090.0,61089.0,1.18450153]
[1719673020570,1.02919615,61090.0,61089.0,1.19850153]
[1719673021831,1.03019615,61090.0,61089.0,1.20950153]
[1719673031723,1.02919615,61090.0,61089.0,1.19850153]
[1719673032160,1.03019615,61090.0,61089.0,1.20950153]
[1719673032561,1.03019615,61090.0,61089.0,1.19550153]
[1719673032865,1.02919615,61090.0,61089.0,1.19550153]
[1719673033408,1.03019615,61090.0,61089.0,1.20550153]
[1719673033704,1.25936615,61090.0,61089.0,1.20550153]
[1719673037479,1.14785,61090.0,61089.0,1.20550153]
[1719673038261,1.262435,61090.0,61089.0,1.20550153]
[1719673042545,1.262435,61090.0,61089.0,1.21732888]
[1719673048543,1.262435,61090.0,61089.0,1.21825288]
[1719673048904,1.263275,61090.0,61089.0,1.21825288]
[1719673053128,1.26178451,61090.0,61089.0,1.21825288]
[1719673053484,1.24496823,61090.0,61089.0,1.21825288]
[1719673057327,1.01579823,61090.0,61089.0,1.21825288]
[1719673058532,1.01579823,61090.0,61089.0,1.46785288]
[1719673058696,1.01579823,61090.0,61089.0,1.5170492]
[1719673058896,1.01579823,61090.0,61089.0,1.3170492]
[1719673059098,1.01579823,61090.0,61089.0,1.34164736]
[1719673059292,1.01479823,61090.0,61089.0,1.25384736]
[1719673059492,1.01479823,61090.0,61089.0,2.09416617]
[1719673059755,1.01479823,61090.0,61089.0,2.09516617]
[1719673060104,1.01579823,61090.0,61089.0,1.74364736]
[1719673061075,1.01479823,61090.0,61089.0,1.73264736]
[1719673061230,1.01479823,61090.0,61089.0,1.65885288]
[1719673061431,1.01479823,61090.0,61089.0,1.67285288]
[1719673064010,0.78562823,61090.0,61089.0,1.67285288]
[1719673064318,0.78562823,61090.0,61089.0,1.72201653]
[1719673064483,0.78562823,61090.0,61089.0,1.67285288]
[1719673065232,0.78562823,61090.0,61089.0,1.64521325]
[1719673066687,0.77842899,61090.0,61089.0,1.64521325]
[1719673066889,0.77842899,61090.0,61089.0,2.15638738]
[1719673067347,0.77842899,61090.0,61089.0,2.0580792]
[1719673067721,0.77842899,61090.0,61089.0,2.0440792]
[1719673067920,0.77742899,61090.0,61089.0,2.0320792]
[1719673068129,0.77742899,61090.0,61089.0,2.0600792]
[1719673068280,0.77742899,61090.0,61089.0,2.15835223]
[1719673068481,0.77742899,61090.0,61089.0,2.14435223]
[1719673068699,0.77742899,61090.0,61089.0,2.15835223]
[1719673069109,0.77742899,61090.0,61089.0,2.06008046]
[1719673070129,0.77742899,61090.0,61089.0,2.1197653]
[1719673070760,0.77742899,61090.0,61089.0,2.1965653]
[1719673071196,0.77742899,61090.0,61089.0,2.2105653]
[1719673071449,0.77742899,61090.0,61089.0,2.21056059]
[1719673071902,0.77742899,61090.0,61089.0,2.21056061]
[1719673072074,0.77742899,61090.0,61089.0,1.84706951]
[1719673073050,0.77742899,61090.0,61089.0,1.77339288]
[1719673075823,0.68835,61090.0,61089.0,1.77339288]
[1719673076245,0.802935,61090.0,61089.0,1.77339288]
[1719673079669,0.802935,61090.0,61089.0,1.69659288]
[1719673080074,0.802935,61090.0,61089.0,1.29659288]
[1719673080324,0.802935,61090.0,61089.0,1.49659288]
[1719673081276,0.802935,61090.0,61089.0,1.29659288]
[1719673081695,0.802935,61090.0,61089.0,1.69659288]
[1719673083136,0.802935,61090.0,61089.0,1.29659288]
[1719673083715,0.802935,61090.0,61089.0,1.69659288]
[1719673085546,0.802935,61090.0,61089.0,1.29659288]
[1719673085718,0.802935,61090.0,61089.0,1.29654736]
[1719673085938,0.802935,61090.0,61089.0,1.73901692]
[1719673088337,0.802935,61090.0,61089.0,1.33901692]
[1719673090177,0.76603965,61090.0,61089.0,1.33901692]
[1719673091767,0.76603965,61090.0,61089.0,1.73901692]
[1719673092221,0.76603965,61090.0,61089.0,1.78812992]
[1719673092420,0.76603965,61090.0,61089.0,1.73901692]
[1719673095150,0.76603965,61090.0,61089.0,1.78814289]
[1719673098999,0.76603965,61090.0,61089.0,1.73901692]
[1719673099583,0.76603965,61090.0,61089.0,1.33901692]
[1719673099960,0.76603965,61090.0,61089.0,1.53901692]
[1719673100565,0.76603965,61090.0,61089.0,1.33901692]
[1719673100768,0.76603965,61090.0,61089.0,1.53901692]
[1719673101162,0.76603965,61090.0,61089.0,1.97626711]
[1719673102162,0.76603965,61090.0,61089.0,1.90253103]
[1719673103070,0.76603965,61090.0,61089.0,1.90253105]
[1719673103269,0.76603965,61090.0,61089.0,2.00089918]
[1719673106357,0.76603965,61090.0,61089.0,2.00094018]
[1719673109707,0.76603965,61090.0,61089.0,2.00094199]
[1719673111398,0.76603965,61090.0,61089.0,1.90253279]
[1719673111782,0.99520965,61090.0,61089.0,1.65466323]
[1719673111987,1.10840965,61090.0,61089.0,1.09114736]
[1719673112389,1.10840965,61090.0,61089.0,1.29114736]
[1719673117249,1.10924965,61090.0,61089.0,1.29114736]
[1719673123557,1.10924965,61090.0,61089.0,1.19260736]
[1719673127873,1.19864965,61090.0,61089.0,1.19260736]
[1719673129270,1.42781965,61090.0,61089.0,1.01980736]
[1719673130305,1.42781965,61090.0,61089.0,1.00580736]
[1719673130511,1.42781965,61090.0,61089.0,0.90580736]
[1719673130512,1.50461965,61090.0,61089.0,0.90580736]
[1719673130716,1.42781965,61090.0,61089.0,0.71980736]
[1719673130919,1.42781965,61090.0,61089.0,0.91980736]
[1719673131468,1.42781965,61090.0,61089.0,0.90580736]
[1719673131672,1.42781965,61090.0,61089.0,0.89180736]
[1719673132020,1.42781965,61090.0,61089.0,1.01980736]
[1719673133009,1.42781965,61090.0,61089.0,0.81980736]
[1719673133237,1.42781965,61090.0,61089.0,1.01980736]
[1719673135001,1.22521965,61090.0,61089.0,1.01980736]
[1719673137987,0.99604965,61090.0,61089.0,1.01980736]
[1719673140831,0.99604965,61090.0,61089.0,0.81980736]
[1719673141012,0.99604965,61090.0,61089.0,1.01980736]
[1719673141410,0.99604965,61090.0,61089.0,0.81980736]
[1719673141590,0.99604965,61090.0,61089.0,1.01980736]
[1719673142448,0.99604965,61090.0,61089.0,0.81980736]
[1719673142646,0.99604965,61090.0,61089.0,1.01980736]
[1719673143085,0.99604965,61090.0,61089.0,0.81980736]
[1719673143470,0.99604965,61090.0,61089.0,1.01980736]
[1719673143671,0.99604965,61090.0,61089.0,0.81980736]
[1719673144275,0.99604965,61090.0,61089.0,1.01980736]
[1719673153366,0.99604965,61090.0,61089.0,1.13280736]
[1719673158412,0.99604965,61090.0,61089.0,1.01980736]
[1719673164533,0.79630983,61090.0,61089.0,1.01980736]
[1719673164943,1.02547983,61090.0,61089.0,1.01980736]
[1719673188529,1.02547983,61090.0,61089.0,0.81980736]
[1719673189033,1.02547983,61090.0,61089.0,1.01980736]
[1719673189208,1.02547983,61090.0,61089.0,0.81980736]
[1719673189409,1.02547983,61090.0,61089.0,1.21980736]
[1719673189618,1.02547983,61090.0,61089.0,1.42990736]
[1719673195927,1.02547983,61090.0,61089.0,1.21980736]
[1719673199201,1.02547983,61090.0,61089.0,1.01980736]
[1719673201654,1.25464983,61090.0,61089.0,0.99680736]
[1719673201861,1.44764983,61090.0,61089.0,0.90927801]
[1719673202816,1.44764983,61090.0,61089.0,0.88127801]
[1719673203016,1.44764983,61090.0,61089.0,0.79209516]
[1719673203220,1.44764983,61090.0,61089.0,0.84309516]
[1719673204636,1.44764983,61090.0,61089.0,0.82909516]
[1719673204786,1.44764983,61090.0,61089.0,0.81509516]
[1719673204989,1.21947983,61090.0,61089.0,0.84309516]
[1719673205191,1.29627983,61090.0,61089.0,0.84309516]
[1719673205389,1.29627983,61090.0,61089.0,1.02909516]
[1719673205617,1.29627983,61090.0,61089.0,1.04309516]
[1719673205825,1.29527983,61090.0,61089.0,1.02909516]
[1719673206441,1.29527983,61090.0,61089.0,1.01509516]
[1719673206646,1.29627983,61090.0,61089.0,1.02909516]
[1719673207848,1.29627983,61090.0,61089.0,1.04309516]
[1719673208048,1.29627983,61090.0,61089.0,1.02909516]
[1719673208486,1.29627983,61090.0,61089.0,1.04309516]
[1719673211632,1.02647983,61090.0,61089.0,1.04309516]
[1719673211805,1.02647983,61090.0,61089.0,1.15749516]
[1719673212256,1.13357983,61090.0,61089.0,1.04309516]
[1719673212799,1.13257983,61090.0,61089.0,1.01509516]
[1719673212998,1.13257983,61090.0,61089.0,1.02909516]
[1719673213204,1.13357983,61090.0,61089.0,1.02909516]
[1719673213662,1.13257983,61090.0,61089.0,1.02909516]
[1719673214924,1.13257983,61090.0,61089.0,0.84309516]
[1719673215127,1.13257983,61090.0,61089.0,0.82909516]
[1719673216206,1.13257983,61090.0,61089.0,0.84309516]
[1719673216608,1.13257983,61090.0,61089.0,1.04309516]
[1719673216808,1.02462,61090.0,61089.0,1.04309516]
[1719673217169,1.139205,61090.0,61089.0,1.04309516]
[1719673217350,1.139205,61090.0,61089.0,1.03126781]
[1719673217674,1.139205,61090.0,61089.0,1.04100061]
[1719673231915,1.139205,61090.0,61089.0,0.84100061]
[1719673232951,1.139205,61090.0,61089.0,1.04100061]
[1719673237046,1.139205,61090.0,61089.0,0.84100061]
[1719673237291,1.139205,61090.0,61089.0,1.04100061]
[1719673238009,1.032105,61090.0,61089.0,1.04100061]
[1719673239425,1.032105,61090.0,61089.0,0.84100061]
[1719673239624,1.032105,61090.0,61089.0,1.15030061]
[1719673240269,1.032105,61090.0,61089.0,1.24200061]
[1719673241239,0.802095,61090.0,61089.0,1.24200061]
[1719673241651,1.031265,61090.0,61089.0,1.24200061]
[1719673242057,1.031265,61090.0,61089.0,1.22800061]
[1719673242603,1.031265,61090.0,61089.0,1.21400061]
[1719673243945,1.031265,61090.0,61089.0,1.22800061]
[1719673244514,1.031265,61090.0,61089.0,1.24200061]
[1719673246957,1.031265,61090.0,61089.0,1.22800061]
[1719673247899,1.031265,61090.0,61089.0,1.24200061]
[1719673248477,0.802095,61090.0,61089.0,1.61480061]
[1719673248880,0.802095,61090.0,61089.0,1.66644392]
[1719673249214,0.802935,61090.0,61089.0,1.60323381]
[1719673249631,0.802935,61090.0,61089.0,1.65242467]
[1719673250043,0.802935,61090.0,61089.0,1.60323381]
[1719673250245,0.802935,61090.0,61089.0,1.63842441]
[1719673250417,0.802935,61090.0,61089.0,1.65242441]
[1719673250618,0.802935,61090.0,61089.0,1.60323381]
[1719673250823,0.802935,61090.0,61089.0,1.18923381]
[1719673251051,0.802935,61090.0,61089.0,1.20323381]
[1719673251276,0.802935,61090.0,61089.0,1.21723381]
[1719673251424,0.802935,61090.0,61089.0,1.20323381]
[1719673251622,0.802935,61090.0,61089.0,1.60323381]
[1719673252491,0.802935,61090.0,61089.0,1.20323381]
[1719673252702,0.802935,61090.0,61089.0,1.61723381]
[1719673255396,0.802935,61090.0,61089.0,1.21723381]
[1719673255811,0.802935,61090.0,61089.0,1.61723381]
[1719673264232,0.573765,61090.0,61089.0,1.61723381]
[1719673264451,0.573765,61090.0,61089.0,1.71573381]
[1719673269123,0.573765,61090.0,61089.0,1.70173381]
[1719673269746,0.573765,61090.0,61089.0,1.71573381]
[1719673270202,0.573765,61090.0,61089.0,1.70173381]
[1719673271578,0.573765,61090.0,61089.0,1.71573381]
[1719673272482,0.573765,61090.0,61089.0,1.70173381]
[1719673272636,0.573765,61090.0,61089.0,1.68773381]
[1719673272833,0.573765,61090.0,61089.0,1.70173381]
[1719673273039,0.573765,61090.0,61089.0,1.71573381]
[1719673273243,0.573765,61090.0,61089.0,1.70173381]
[1719673273625,0.573765,61090.0,61089.0,1.71573381]
[1719673274012,0.573765,61090.0,61089.0,1.70173381]
[1719673275561,0.573765,61090.0,61089.0,1.71573381]
[1719673279902,0.573765,61090.0,61089.0,1.31573381]
[1719673280119,0.573765,61090.0,61089.0,1.71573381]
[1719673283697,0.573765,61090.0,61089.0,1.71978914]
[1719673287631,0.573765,61090.0,61089.0,1.76895454]
[1719673288198,0.573765,61090.0,61089.0,1.76896893]
[1719673291384,0.573765,61090.0,61089.0,1.76898109]
[1719673291740,0.573765,61090.0,61089.0,1.31978914]
[1719673291942,0.573765,61090.0,61089.0,1.71978914]
[1719673292105,0.573765,61090.0,61089.0,1.31978914]
[1719673292307,0.573765,61090.0,61089.0,1.71978914]
[1719673292715,0.573765,61090.0,61089.0,1.31978914]
[1719673293113,0.573765,61090.0,61089.0,1.71978914]
[1719673293735,0.573765,61090.0,61089.0,1.79357706]
[1719673294514,0.573765,61090.0,61089.0,1.75715078]
[1719673294900,0.573765,61090.0,61089.0,2.15715078]
[1719673296209,0.573765,61090.0,61089.0,1.75715078]
[1719673296839,0.573765,61090.0,61089.0,1.68331655]
[1719673297240,0.573765,61090.0,61089.0,2.08331655]
[1719673297603,0.573765,61090.0,61089.0,2.1817622]
[1719673297807,0.573765,61090.0,61089.0,2.1817451]
[1719673298828,0.573765,61090.0,61089.0,2.1677451]
[1719673299014,0.573765,61090.0,61089.0,2.1817451]
[1719673299423,0.573765,61090.0,61089.0,2.21943642]
[1719673299621,0.573765,61090.0,61089.0,2.19143642]
[1719673299971,0.573765,61090.0,61089.0,2.20543642]
[1719673300143,0.573765,61090.0,61089.0,2.21943642]
[1719673300317,0.573765,61090.0,61089.0,2.3284884]
[1719673300526,0.573765,61090.0,61089.0,2.21943642]
[1719673300729,0.573765,61090.0,61089.0,2.3424884]
[1719673300929,0.573765,61090.0,61089.0,2.34246032]
[1719673301358,0.573765,61090.0,61089.0,2.32846032]
[1719673301522,0.573765,61090.0,61089.0,2.31446032]
[1719673301727,0.00084,61093.0,61092.0,0.77275448]
[1719673301959,0.00084,61093.0,61092.0,4.06535553]
[1719673302159,0.00084,61093.0,61092.0,4.08154723]
[1719673302335,0.00084,61093.0,61092.0,5.13801481]
[1719673302543,0.00084,61093.0,61092.0,4.08154723]
[1719673302938,0.00084,61093.0,61092.0,5.15200478]
[1719673303167,0.00084,61093.0,61092.0,5.0043585]
[1719673303365,0.00084,61093.0,61092.0,5.0183585]
[1719673303565,0.00084,61093.0,61092.0,5.0043585]
[1719673303768,0.00084,61093.0,61092.0,4.48154723]
[1719673304013,0.00084,61093.0,61092.0,3.99591685]
[1719673304175,0.00084,61093.0,61092.0,4.4954507]
[1719673304972,0.00084,61093.0,61092.0,4.4186507]
[1719673305168,0.00084,61093.0,61092.0,4.5094507]
[1719673307127,0.00084,61093.0,61092.0,3.98175868]
[1719673307326,0.00084,61093.0,61092.0,4.3451916]